[Event "*** Titled Tuesday Blitz"]
[Site "Chess.com"]
[Date "2021.04.20"]
[Round "9"]
[White "bsnsun"]
[Black "MatyChess1"]
[Result "1-0"]
[WhiteElo "2457"]
[BlackElo "2620"]
[TimeControl "180+1"]
[EndTime "11:46:31 PDT"]
[Termination "bsnsun won by resignation"]

1. Nf3 {[%clk 0:02:10.7]} 1... d5 {[%clk 0:03:00]} 2. c4 {[%clk 0:02:07.9]} 2...
e6 {[%clk 0:02:53.3]} 3. g3 {[%clk 0:02:07.9]} 3... Nf6 {[%clk 0:02:53.3]} 4.
Bg2 {[%clk 0:02:07.4]} 4... Be7 {[%clk 0:02:54]} 5. O-O {[%clk 0:02:07.4]} 5...
O-O {[%clk 0:02:54.7]} 6. d4 {[%clk 0:02:07.8]} 6... dxc4 {[%clk 0:02:54.5]} 7.
Ne5 {[%clk 0:02:08.4]} 7... Nc6 {[%clk 0:02:54.3]} 8. Bxc6 {[%clk 0:02:07.8]}
8... bxc6 {[%clk 0:02:54.3]} 9. Nxc6 {[%clk 0:02:08.4]} 9... Qe8 {[%clk
0:02:54.8]} 10. Nxe7+ {[%clk 0:02:09.3]} 10... Qxe7 {[%clk 0:02:55.7]} 11. Qc2
{[%clk 0:02:09.4]} 11... e5 {[%clk 0:02:49.5]} 12. dxe5 {[%clk 0:02:07.9]} 12...
Qxe5 {[%clk 0:02:50.4]} 13. Bf4 {[%clk 0:02:07.1]} 13... Qh5 {[%clk 0:02:43.2]}
14. Qxc4 {[%clk 0:02:02.3]} 14... Be6 {[%clk 0:02:38.5]} 15. Qc2 {[%clk
0:01:54.2]} 15... Bf5 {[%clk 0:02:34.4]} 16. Qc5 {[%clk 0:01:22.9]} 16... Ne4
{[%clk 0:02:06.1]} 17. Qa5 {[%clk 0:01:22]} 17... Nf6 {[%clk 0:01:12.8]} 18. f3
{[%clk 0:01:13.9]} 18... Qh3 {[%clk 0:01:07.4]} 19. Nc3 {[%clk 0:01:07.3]} 19...
Rfe8 {[%clk 0:01:06.3]} 20. Rf2 {[%clk 0:01:02.8]} 20... Re6 {[%clk 0:00:47.5]}
21. e4 {[%clk 0:01:01.6]} 21... Bg6 {[%clk 0:00:47.5]} 22. Bxc7 {[%clk
0:00:58.5]} 22... h5 {[%clk 0:00:46.9]} 23. Rd1 {[%clk 0:00:57.1]} 23... h4
{[%clk 0:00:46.8]} 24. Qg5 {[%clk 0:00:55.3]} 24... hxg3 {[%clk 0:00:45.4]} 25.
hxg3 {[%clk 0:00:53.8]} 25... Nh7 {[%clk 0:00:44]} 26. Rd8+ {[%clk 0:00:49.9]}
26... Re8 {[%clk 0:00:39.7]} 27. Rxa8 {[%clk 0:00:45.3]} 27... Rxa8 {[%clk
0:00:37.8]} 28. Qd5 {[%clk 0:00:42.5]} 28... Rc8 {[%clk 0:00:33.5]} 29. Rh2
{[%clk 0:00:42.1]} 29... Qe6 {[%clk 0:00:26.1]} 30. Qxe6 {[%clk 0:00:42.5]}
30... fxe6 {[%clk 0:00:27]} 31. Bf4 {[%clk 0:00:42.8]} 31... Nf6 {[%clk
0:00:25.9]} 32. Rd2 {[%clk 0:00:43]} 32... Be8 {[%clk 0:00:25.2]} 33. Kf2 {[%clk
0:00:42.5]} 33... Nd7 {[%clk 0:00:25.6]} 34. Rd6 {[%clk 0:00:42.2]} 34... Kf7
{[%clk 0:00:20.9]} 35. e5 {[%clk 0:00:39.8]} 35... Nb6 {[%clk 0:00:20.4]} 36.
Ne4 {[%clk 0:00:32.8]} 36... Rc2+ {[%clk 0:00:20.1]} 37. Ke1 {[%clk 0:00:32.5]}
37... Rxb2 {[%clk 0:00:17.8]} 38. Ng5+ {[%clk 0:00:33]} 38... Ke7 {[%clk
0:00:12.8]} 39. Rxe6+ {[%clk 0:00:32.9]} 39... Kd7 {[%clk 0:00:13.5]} 40. Rd6+
{[%clk 0:00:33.3]} 40... Ke7 {[%clk 0:00:13.6]} 41. Ne4 {[%clk 0:00:23.7]} 41...
Bb5 {[%clk 0:00:13.2]} 42. Bg5+ {[%clk 0:00:23.7]} 42... Kf7 {[%clk 0:00:13.2]}
43. e6+ {[%clk 0:00:23.9]} 43... Kg6 {[%clk 0:00:09.6]} 44. e7+ {[%clk
0:00:24.2]} 44... Kh7 {[%clk 0:00:10.2]} 45. Rd8 {[%clk 0:00:22.4]} 45... Nc4
{[%clk 0:00:07.7]} 46. e8=Q {[%clk 0:00:19.9]} 46... Bxe8 {[%clk 0:00:08.1]} 47.
Rxe8 {[%clk 0:00:20.1]} 47... Rxa2 {[%clk 0:00:08.4]} 48. Bf4 {[%clk 0:00:20]}
48... a5 {[%clk 0:00:07.9]} 49. Ng5+ {[%clk 0:00:20.2]} 49... Kh6 {[%clk
0:00:05]} 50. Re6+ {[%clk 0:00:18.8]} 50... g6 {[%clk 0:00:05.5]} 51. g4 {[%clk
0:00:17.2]} 51... Kg7 {[%clk 0:00:04.3]} 52. Ra6 {[%clk 0:00:16.7]} 52... Kg8
{[%clk 0:00:03.2]} 53. Ne6 {[%clk 0:00:16.3]} 53... Nb2 {[%clk 0:00:01.8]} 54.
Bd2 {[%clk 0:00:09.8]} 54... Nd3+ {[%clk 0:00:02]} 55. Ke2 {[%clk 0:00:10.1]}
55... Ne5 {[%clk 0:00:02.9]} 56. Nf4 {[%clk 0:00:08.8]} 56... Nc4 {[%clk
0:00:03.1]} 57. Ra8+ {[%clk 0:00:08.9]} 57... Kf7 {[%clk 0:00:03.2]} 58. Rd8
{[%clk 0:00:09.8]} 58... Ne5 {[%clk 0:00:02.8]} 59. Nd3 {[%clk 0:00:08.4]} 59...
Nc4 {[%clk 0:00:02.8]} 60. Nc5 {[%clk 0:00:06.4]} 60... a4 {[%clk 0:00:01.7]}
61. Rd4 {[%clk 0:00:06.6]} 61... Nb2 {[%clk 0:00:01.6]} 62. Rb4 {[%clk
0:00:04.4]} 62... a3 {[%clk 0:00:02.5]} 63. Rb3 {[%clk 0:00:02.9]} 63... Ra1
{[%clk 0:00:01.6]} 64. Bc3 {[%clk 0:00:03.2]} 64... Ra2 {[%clk 0:00:01.3]} 65.
Bxb2 {[%clk 0:00:02.7]} 65... axb2 {[%clk 0:00:02.2]} 66. Kd3 {[%clk 0:00:02.4]}
66... Kf6 {[%clk 0:00:02.6]} 67. Kc2 {[%clk 0:00:02]} 67... b1=Q+ {[%clk
0:00:02.2]} 68. Kxb1 {[%clk 0:00:01.5]} 68... Rf2 {[%clk 0:00:03.1]} 69. Ne4+
{[%clk 0:00:01.5]} 69... Ke5 {[%clk 0:00:04]} 70. Nxf2 {[%clk 0:00:02.4]} 70...
Kf4 {[%clk 0:00:03.6]} 71. Rb6 {[%clk 0:00:03.3]} 71... g5 {[%clk 0:00:04.5]}
72. Rg6 {[%clk 0:00:04.2]} 72... Kg3 {[%clk 0:00:05.4]} 73. Rxg5 {[%clk
0:00:04.9]} 73... Kf4 {[%clk 0:00:06.3]} 74. Rg8 {[%clk 0:00:05.4]} 74... Kxf3
{[%clk 0:00:06.9]} 75. g5 {[%clk 0:00:06.3]} 1-0

[Event "*** Titled Tuesday Blitz"]
[Site "Chess.com"]
[Date "2021.04.20"]
[Round "9"]
[White "OriTaichman"]
[Black "MarcoRiehle"]
[Result "1-0"]
[WhiteElo "2568"]
[BlackElo "2687"]
[TimeControl "180+1"]
[EndTime "11:46:55 PDT"]
[Termination "OriTaichman won by checkmate"]

1. e4 {[%clk 0:02:55.2]} 1... e5 {[%clk 0:02:59.7]} 2. d4 {[%clk 0:02:54.4]}
2... exd4 {[%clk 0:02:58.9]} 3. Qxd4 {[%clk 0:02:55.3]} 3... Nc6 {[%clk
0:02:57.7]} 4. Qe3 {[%clk 0:02:55.8]} 4... Nf6 {[%clk 0:02:58.2]} 5. Nc3 {[%clk
0:02:56.4]} 5... Bb4 {[%clk 0:02:57.8]} 6. Bd2 {[%clk 0:02:56.9]} 6... O-O
{[%clk 0:02:57.9]} 7. O-O-O {[%clk 0:02:57.6]} 7... Re8 {[%clk 0:02:58.4]} 8.
Qg3 {[%clk 0:02:58.2]} 8... Rxe4 {[%clk 0:02:57]} 9. a3 {[%clk 0:02:57.4]} 9...
Bxc3 {[%clk 0:02:49.4]} 10. Bxc3 {[%clk 0:02:58.3]} 10... d6 {[%clk 0:02:48]}
11. f3 {[%clk 0:02:44.4]} 11... Re8 {[%clk 0:02:39.8]} 12. Bd3 {[%clk
0:02:39.9]} 12... Ne5 {[%clk 0:02:39.2]} 13. Bxe5 {[%clk 0:02:39.2]} 13... Rxe5
{[%clk 0:02:36.1]} 14. Qxe5 {[%clk 0:02:38.3]} 14... dxe5 {[%clk 0:02:32.8]} 15.
Bxh7+ {[%clk 0:02:37.3]} 15... Kxh7 {[%clk 0:02:33.7]} 16. Rxd8 {[%clk
0:02:37.6]} 16... b6 {[%clk 0:02:30.2]} 17. Ne2 {[%clk 0:02:37]} 17... Bb7
{[%clk 0:02:29.7]} 18. Rxa8 {[%clk 0:02:37.6]} 18... Bxa8 {[%clk 0:02:30.6]} 19.
Rd1 {[%clk 0:02:37.6]} 19... e4 {[%clk 0:02:28.3]} 20. fxe4 {[%clk 0:02:37.1]}
20... Bxe4 {[%clk 0:02:27.6]} 21. g3 {[%clk 0:02:36]} 21... Ng4 {[%clk
0:02:25.6]} 22. Rd7 {[%clk 0:02:25.5]} 22... f5 {[%clk 0:02:24.5]} 23. h3 {[%clk
0:02:23.1]} 23... Nf2 {[%clk 0:02:24.3]} 24. Nf4 {[%clk 0:02:20.7]} 24... Kh6
{[%clk 0:02:21]} 25. Rxc7 {[%clk 0:02:19.1]} 25... g5 {[%clk 0:02:21]} 26. Ne6
{[%clk 0:02:14.8]} 26... Nxh3 {[%clk 0:02:18.6]} 27. Rxa7 {[%clk 0:02:14.6]}
27... f4 {[%clk 0:02:14.6]} 28. gxf4 {[%clk 0:02:15.5]} 28... g4 {[%clk
0:02:15]} 29. Ng5 {[%clk 0:01:42.9]} 29... Bf5 {[%clk 0:02:03.5]} 30. Kd2 {[%clk
0:01:24.9]} 30... Nxf4 {[%clk 0:01:58.9]} 31. Nf7+ {[%clk 0:01:14.1]} 31... Kh5
{[%clk 0:01:58.9]} 32. Nd6 {[%clk 0:01:12.3]} 32... Bg6 {[%clk 0:01:40.3]} 33.
Ke3 {[%clk 0:00:52.9]} 33... g3 {[%clk 0:01:29.6]} 34. Ra4 {[%clk 0:00:31.2]}
34... Kg5 {[%clk 0:00:56.5]} 35. Ne4+ {[%clk 0:00:11.9]} 35... Bxe4 {[%clk
0:00:56.1]} 36. Rxe4 {[%clk 0:00:12.8]} 36... g2 {[%clk 0:00:53.7]} 37. Kf2
{[%clk 0:00:13.7]} 37... Kf5 {[%clk 0:00:54.2]} 38. Re8 {[%clk 0:00:11.2]} 38...
b5 {[%clk 0:00:44.8]} 39. b3 {[%clk 0:00:10.4]} 39... Nd5 {[%clk 0:00:43.8]} 40.
Kxg2 {[%clk 0:00:06.8]} 40... Nc3 {[%clk 0:00:44.1]} 41. Kf3 {[%clk 0:00:05.9]}
41... Nb1 {[%clk 0:00:43.1]} 42. a4 {[%clk 0:00:06.4]} 42... bxa4 {[%clk
0:00:42.8]} 43. bxa4 {[%clk 0:00:07.3]} 43... Na3 {[%clk 0:00:43.3]} 44. a5
{[%clk 0:00:05.1]} 44... Nxc2 {[%clk 0:00:43.4]} 45. a6 {[%clk 0:00:04.7]} 45...
Nd4+ {[%clk 0:00:44]} 46. Ke3 {[%clk 0:00:04.5]} 46... Nb5 {[%clk 0:00:43.9]}
47. Re7 {[%clk 0:00:03.2]} 47... Kf6 {[%clk 0:00:42.7]} 48. a7 {[%clk
0:00:03.5]} 48... Kxe7 {[%clk 0:00:41.9]} 49. a8=Q {[%clk 0:00:04]} 49... Nc7
{[%clk 0:00:42.4]} 50. Qh8 {[%clk 0:00:04.1]} 50... Ne6 {[%clk 0:00:42.1]} 51.
Kf2 {[%clk 0:00:04.7]} 51... Kd6 {[%clk 0:00:42]} 52. Qh6 {[%clk 0:00:04.8]}
52... Ke5 {[%clk 0:00:42.1]} 53. Kf3 {[%clk 0:00:04.8]} 53... Nd4+ {[%clk
0:00:42]} 54. Kg4 {[%clk 0:00:04.2]} 54... Ke4 {[%clk 0:00:41.5]} 55. Qf8 {[%clk
0:00:04.1]} 55... Ke5 {[%clk 0:00:39.8]} 56. Qe8+ {[%clk 0:00:04.7]} 56... Kd5
{[%clk 0:00:40.1]} 57. Qe7 {[%clk 0:00:04.7]} 57... Nc6 {[%clk 0:00:39.6]} 58.
Qd7+ {[%clk 0:00:04.1]} 58... Kc5 {[%clk 0:00:39.9]} 59. Kf4 {[%clk 0:00:04.9]}
59... Na5 {[%clk 0:00:37.2]} 60. Ke5 {[%clk 0:00:04.7]} 60... Nc4+ {[%clk
0:00:37.3]} 61. Ke4 {[%clk 0:00:05.1]} 61... Nd6+ {[%clk 0:00:37.1]} 62. Kf4
{[%clk 0:00:05.4]} 62... Nc4 {[%clk 0:00:37.2]} 63. Qc7+ {[%clk 0:00:04.7]}
63... Kd5 {[%clk 0:00:36.9]} 64. Qd8+ {[%clk 0:00:05.2]} 64... Nd6 {[%clk
0:00:36.4]} 65. Qd7 {[%clk 0:00:05.7]} 65... Kc5 {[%clk 0:00:36.2]} 66. Ke5
{[%clk 0:00:06.5]} 66... Nc4+ {[%clk 0:00:36.7]} 67. Ke6 {[%clk 0:00:07.1]}
67... Kb4 {[%clk 0:00:34.8]} 68. Qd3 {[%clk 0:00:07.5]} 68... Kc5 {[%clk
0:00:34.6]} 69. Qd5+ {[%clk 0:00:07]} 69... Kb4 {[%clk 0:00:35.1]} 70. Qd4
{[%clk 0:00:07.8]} 70... Kb5 {[%clk 0:00:34.1]} 71. Kd5 {[%clk 0:00:08]} 71...
Nb6+ {[%clk 0:00:34.3]} 72. Kd6 {[%clk 0:00:08.6]} 72... Nc4+ {[%clk 0:00:34.7]}
73. Kc7 {[%clk 0:00:08.8]} 73... Na3 {[%clk 0:00:29.5]} 74. Qb2+ {[%clk
0:00:09.1]} 74... Ka4 {[%clk 0:00:29.1]} 75. Kc6 {[%clk 0:00:09.4]} 75... Nc4
{[%clk 0:00:29.4]} 76. Qa2+ {[%clk 0:00:09.3]} 76... Kb4 {[%clk 0:00:29.3]} 77.
Kd5 {[%clk 0:00:09.7]} 77... Nb6+ {[%clk 0:00:25]} 78. Kd4 {[%clk 0:00:10.2]}
78... Kb5 {[%clk 0:00:25.5]} 79. Qe6 {[%clk 0:00:09.2]} 79... Na4 {[%clk
0:00:20.1]} 80. Qd7+ {[%clk 0:00:08.3]} 80... Kb4 {[%clk 0:00:19.8]} 81. Qb7+
{[%clk 0:00:08.6]} 81... Ka5 {[%clk 0:00:18.8]} 82. Kc4 {[%clk 0:00:08.6]} 82...
Nb6+ {[%clk 0:00:18.9]} 83. Kc5 {[%clk 0:00:09]} 83... Na4+ {[%clk 0:00:19.2]}
84. Kc6 {[%clk 0:00:08.9]} 84... Nc3 {[%clk 0:00:19.7]} 85. Qb3 {[%clk
0:00:08.9]} 85... Na4 {[%clk 0:00:19]} 86. Qb5# {[%clk 0:00:09]} 1-0

[Event "*** Titled Tuesday Blitz"]
[Site "Chess.com"]
[Date "2021.04.20"]
[Round "10"]
[White "davigator"]
[Black "Iskusnyh"]
[Result "1-0"]
[WhiteElo "2450"]
[BlackElo "2594"]
[TimeControl "180+1"]
[EndTime "11:49:23 PDT"]
[Termination "davigator won by resignation"]

1. e4 {[%clk 0:03:00.9]} 1... c5 {[%clk 0:02:59.6]} 2. Nf3 {[%clk 0:03:00.8]}
2... d6 {[%clk 0:02:59.6]} 3. d4 {[%clk 0:03:00.2]} 3... cxd4 {[%clk 0:02:59.4]}
4. Nxd4 {[%clk 0:03:00.6]} 4... Nf6 {[%clk 0:02:59.9]} 5. Nc3 {[%clk 0:03:01]}
5... a6 {[%clk 0:03:00.2]} 6. Bg5 {[%clk 0:03:00.8]} 6... e6 {[%clk 0:02:59.3]}
7. f4 {[%clk 0:02:59.6]} 7... h6 {[%clk 0:02:59.6]} 8. Bh4 {[%clk 0:02:57.1]}
8... Qb6 {[%clk 0:03:00]} 9. a3 {[%clk 0:02:56.6]} 9... Nbd7 {[%clk 0:02:57.2]}
10. Bf2 {[%clk 0:02:56.3]} 10... Qc7 {[%clk 0:02:56.6]} 11. Qf3 {[%clk
0:02:55.3]} 11... b5 {[%clk 0:02:56.3]} 12. O-O-O {[%clk 0:02:54.6]} 12... Rb8
{[%clk 0:02:54.5]} 13. g4 {[%clk 0:02:43.1]} 13... Be7 {[%clk 0:02:47.5]} 14. h4
{[%clk 0:02:41.5]} 14... g5 {[%clk 0:02:47.3]} 15. hxg5 {[%clk 0:02:40.4]} 15...
Ng8 {[%clk 0:02:42]} 16. g6 {[%clk 0:02:38.9]} 1-0

[Event "*** Titled Tuesday Blitz"]
[Site "Chess.com"]
[Date "2021.04.20"]
[Round "10"]
[White "Grandmaster2B"]
[Black "Trickster_Pony"]
[Result "1-0"]
[WhiteElo "2522"]
[BlackElo "1621"]
[TimeControl "180+1"]
[EndTime "11:49:46 PDT"]
[Termination "Grandmaster2B won by checkmate"]

1. e4 {[%clk 0:03:00.9]} 1... c5 {[%clk 0:03:00]} 2. Nf3 {[%clk 0:02:50.4]} 2...
g6 {[%clk 0:02:59.6]} 3. d4 {[%clk 0:02:50]} 3... cxd4 {[%clk 0:02:58.1]} 4.
Qxd4 {[%clk 0:02:50.9]} 4... Nf6 {[%clk 0:02:57.8]} 5. e5 {[%clk 0:02:50.9]}
5... Nc6 {[%clk 0:02:58.1]} 6. Qa4 {[%clk 0:02:51.5]} 6... Nd5 {[%clk
0:02:58.2]} 7. Qe4 {[%clk 0:02:52.1]} 7... Nb6 {[%clk 0:02:42.8]} 8. Nc3 {[%clk
0:02:50.7]} 8... Bg7 {[%clk 0:02:41.9]} 9. Bf4 {[%clk 0:02:51.2]} 9... O-O
{[%clk 0:02:39.3]} 10. O-O-O {[%clk 0:02:50.9]} 10... a5 {[%clk 0:02:28.8]} 11.
h4 {[%clk 0:02:50.5]} 11... h5 {[%clk 0:02:26.1]} 12. Bd3 {[%clk 0:02:46.3]}
12... a4 {[%clk 0:02:23.4]} 13. g4 {[%clk 0:02:45.9]} 13... a3 {[%clk
0:02:20.7]} 14. gxh5 {[%clk 0:02:43.8]} 14... axb2+ {[%clk 0:02:18.1]} 15. Kb1
{[%clk 0:02:44.4]} 15... gxh5 {[%clk 0:02:06.8]} 16. Qh7# {[%clk 0:02:44.4]} 1-0

[Event "*** Titled Tuesday Blitz"]
[Site "Chess.com"]
[Date "2021.04.20"]
[Round "10"]
[White "ViktoriyaTarasova"]
[Black "tusplingher"]
[Result "1-0"]
[WhiteElo "2434"]
[BlackElo "2276"]
[TimeControl "180+1"]
[EndTime "11:50:03 PDT"]
[Termination "ViktoriyaTarasova won by resignation"]

1. d4 {[%clk 0:03:00.9]} 1... Nf6 {[%clk 0:02:59.4]} 2. c4 {[%clk 0:03:01.2]}
2... c5 {[%clk 0:02:58.8]} 3. d5 {[%clk 0:03:00.9]} 3... b5 {[%clk 0:02:58]} 4.
cxb5 {[%clk 0:03:00.1]} 4... a6 {[%clk 0:02:56.7]} 5. bxa6 {[%clk 0:03:00]} 5...
g6 {[%clk 0:02:55.9]} 6. Nc3 {[%clk 0:03:00.5]} 6... Bg7 {[%clk 0:02:55.5]} 7.
Nf3 {[%clk 0:03:01.2]} 7... O-O {[%clk 0:02:55.2]} 8. e4 {[%clk 0:03:01.8]} 8...
d6 {[%clk 0:02:51.9]} 9. Be2 {[%clk 0:03:01.8]} 9... Bxa6 {[%clk 0:02:49.9]} 10.
O-O {[%clk 0:03:02.3]} 10... Bxe2 {[%clk 0:02:49.4]} 11. Qxe2 {[%clk 0:03:01.6]}
11... Nbd7 {[%clk 0:02:48.2]} 12. a4 {[%clk 0:02:59.4]} 12... Qa5 {[%clk
0:02:40.8]} 13. Bd2 {[%clk 0:02:58]} 13... Qb4 {[%clk 0:02:33.2]} 14. Rfe1
{[%clk 0:02:36.6]} 14... Qxb2 {[%clk 0:02:28.8]} 15. Reb1 {[%clk 0:02:30]} 15...
Qc2 {[%clk 0:02:24.9]} 16. Ne1 {[%clk 0:02:29.7]} 16... Qxb1 {[%clk 0:02:11.5]}
17. Rxb1 {[%clk 0:02:28.7]} 1-0

[Event "*** Titled Tuesday Blitz"]
[Site "Chess.com"]
[Date "2021.04.20"]
[Round "10"]
[White "aljado"]
[Black "CURRUTACO59"]
[Result "0-1"]
[WhiteElo "2041"]
[BlackElo "2165"]
[TimeControl "180+1"]
[EndTime "11:50:05 PDT"]
[Termination "CURRUTACO59 won by resignation"]

1. e4 {[%clk 0:02:58.4]} 1... e5 {[%clk 0:03:00.1]} 2. Nf3 {[%clk 0:02:57.5]}
2... Nf6 {[%clk 0:02:59.5]} 3. Bc4 {[%clk 0:02:56.5]} 3... Nxe4 {[%clk
0:02:52.3]} 4. d4 {[%clk 0:02:55.4]} 4... d5 {[%clk 0:02:51]} 5. Bb3 {[%clk
0:02:51.8]} 5... exd4 {[%clk 0:02:49.6]} 6. Qxd4 {[%clk 0:02:45.3]} 6... c6
{[%clk 0:02:39.6]} 7. O-O {[%clk 0:02:42.6]} 7... Qb6 {[%clk 0:02:20.6]} 8. Qe5+
{[%clk 0:02:39.1]} 8... Be6 {[%clk 0:02:14.9]} 9. c4 {[%clk 0:02:27.6]} 9... Nd7
{[%clk 0:02:12.8]} 10. Qc3 {[%clk 0:02:16.7]} 10... Nxc3 {[%clk 0:02:11.7]} 0-1

[Event "*** Titled Tuesday Blitz"]
[Site "Chess.com"]
[Date "2021.04.20"]
[Round "10"]
[White "PavelShkapenko"]
[Black "davidkalashian"]
[Result "1-0"]
[WhiteElo "2712"]
[BlackElo "2547"]
[TimeControl "180+1"]
[EndTime "11:50:25 PDT"]
[Termination "PavelShkapenko won by resignation"]

1. e4 {[%clk 0:02:56.1]} 1... c5 {[%clk 0:02:59.9]} 2. c3 {[%clk 0:02:55.7]}
2... Nf6 {[%clk 0:02:58.9]} 3. e5 {[%clk 0:02:55.9]} 3... Nd5 {[%clk 0:02:59.4]}
4. d4 {[%clk 0:02:56.8]} 4... cxd4 {[%clk 0:03:00.2]} 5. cxd4 {[%clk 0:02:57.6]}
5... Nc6 {[%clk 0:03:00.5]} 6. Nc3 {[%clk 0:02:57.4]} 6... Nxc3 {[%clk
0:02:59.5]} 7. bxc3 {[%clk 0:02:58.3]} 7... d5 {[%clk 0:03:00.2]} 8. Bd3 {[%clk
0:02:57.3]} 8... e6 {[%clk 0:02:51.5]} 9. Nf3 {[%clk 0:02:54.8]} 9... Be7 {[%clk
0:02:51.8]} 10. h4 {[%clk 0:02:51.5]} 10... h6 {[%clk 0:02:49.3]} 11. h5 {[%clk
0:02:51.6]} 11... Bd7 {[%clk 0:02:47.9]} 12. Rh3 {[%clk 0:02:51.4]} 12... Rc8
{[%clk 0:02:46.9]} 13. Rg3 {[%clk 0:02:51.4]} 13... Kf8 {[%clk 0:02:46.8]} 14.
Ng1 {[%clk 0:02:37.6]} 14... Na5 {[%clk 0:02:45.2]} 15. Qg4 {[%clk 0:02:36.7]}
15... Bg5 {[%clk 0:02:29.6]} 16. f4 {[%clk 0:02:32.2]} 16... Bh4 {[%clk
0:02:29.5]} 17. Qxg7+ {[%clk 0:02:20.7]} 17... Ke7 {[%clk 0:02:29]} 18. Ba3+
{[%clk 0:02:20.6]} 18... Rc5 {[%clk 0:02:25.6]} 19. Bxc5+ {[%clk 0:02:19.1]} 1-0

[Event "*** Titled Tuesday Blitz"]
[Site "Chess.com"]
[Date "2021.04.20"]
[Round "10"]
[White "lucachess49"]
[Black "BJthechessgod"]
[Result "1-0"]
[WhiteElo "2443"]
[BlackElo "2289"]
[TimeControl "180+1"]
[EndTime "11:50:32 PDT"]
[Termination "lucachess49 won by resignation"]

1. d4 {[%clk 0:03:00.9]} 1... Nf6 {[%clk 0:02:59.1]} 2. c4 {[%clk 0:03:01.5]}
2... e6 {[%clk 0:02:56.8]} 3. Nc3 {[%clk 0:03:01.7]} 3... Bb4 {[%clk 0:02:56.5]}
4. e3 {[%clk 0:03:02.1]} 4... O-O {[%clk 0:02:55]} 5. Ne2 {[%clk 0:03:02.6]}
5... c5 {[%clk 0:02:55.3]} 6. a3 {[%clk 0:03:03]} 6... Bxc3+ {[%clk 0:02:53.9]}
7. Nxc3 {[%clk 0:03:02.4]} 7... cxd4 {[%clk 0:02:54.6]} 8. exd4 {[%clk
0:03:03.1]} 8... d5 {[%clk 0:02:55.3]} 9. c5 {[%clk 0:03:03.6]} 9... Nc6 {[%clk
0:02:54.2]} 10. Be2 {[%clk 0:03:03.5]} 10... Bd7 {[%clk 0:02:52.3]} 11. O-O
{[%clk 0:03:02.9]} 11... Re8 {[%clk 0:02:52.3]} 12. b4 {[%clk 0:03:02]} 12... a6
{[%clk 0:02:52.1]} 13. Bf4 {[%clk 0:03:00.6]} 13... Na7 {[%clk 0:02:43.4]} 14.
a4 {[%clk 0:02:59.6]} 14... b5 {[%clk 0:02:36.5]} 15. axb5 {[%clk 0:02:55]}
15... Nxb5 {[%clk 0:02:37]} 16. Nxb5 {[%clk 0:02:54.4]} 16... Bxb5 {[%clk
0:02:36.5]} 17. Bxb5 {[%clk 0:02:53.6]} 17... axb5 {[%clk 0:02:37.4]} 18. Qc2
{[%clk 0:02:22.7]} 18... Qc8 {[%clk 0:02:08.4]} 19. c6 {[%clk 0:02:18.1]} 19...
Nd7 {[%clk 0:02:03.8]} 20. Rxa8 {[%clk 0:02:15.2]} 20... Qxa8 {[%clk 0:02:03.9]}
21. cxd7 {[%clk 0:02:12.6]} 1-0

[Event "*** Titled Tuesday Blitz"]
[Site "Chess.com"]
[Date "2021.04.20"]
[Round "10"]
[White "dosto07"]
[Black "jraosam"]
[Result "1-0"]
[WhiteElo "2324"]
[BlackElo "1921"]
[TimeControl "180+1"]
[EndTime "11:51:18 PDT"]
[Termination "dosto07 won by resignation"]

1. e4 {[%clk 0:02:48.3]} 1... c5 {[%clk 0:01:58.2]} 2. Nf3 {[%clk 0:02:47.1]}
2... d6 {[%clk 0:01:58.2]} 3. Bb5+ {[%clk 0:02:46.3]} 3... Nd7 {[%clk
0:01:57.6]} 4. d4 {[%clk 0:02:45.1]} 4... cxd4 {[%clk 0:01:56.8]} 5. Qxd4 {[%clk
0:02:45.6]} 5... a6 {[%clk 0:01:54.6]} 6. Bxd7+ {[%clk 0:02:44.7]} 6... Bxd7
{[%clk 0:01:55.5]} 7. Nc3 {[%clk 0:02:44.8]} 7... Nf6 {[%clk 0:01:54.1]} 8. Bg5
{[%clk 0:02:43.7]} 8... e6 {[%clk 0:01:52.5]} 9. O-O-O {[%clk 0:02:42.3]} 9...
Be7 {[%clk 0:01:49.1]} 10. e5 {[%clk 0:02:42.1]} 10... dxe5 {[%clk 0:01:48]} 11.
Nxe5 {[%clk 0:02:42]} 11... h6 {[%clk 0:01:11.3]} 12. Bxf6 {[%clk 0:02:38.9]}
12... gxf6 {[%clk 0:01:02.2]} 13. Nxd7 {[%clk 0:02:30.1]} 1-0

[Event "*** Titled Tuesday Blitz"]
[Site "Chess.com"]
[Date "2021.04.20"]
[Round "10"]
[White "AndreyNeves"]
[Black "GAusal"]
[Result "0-1"]
[WhiteElo "2234"]
[BlackElo "2043"]
[TimeControl "180+1"]
[EndTime "11:52:23 PDT"]
[Termination "GAusal won by resignation"]

1. d4 {[%clk 0:03:00.9]} 1... d5 {[%clk 0:02:58.9]} 2. c4 {[%clk 0:03:01.8]}
2... c6 {[%clk 0:02:56.4]} 3. Nf3 {[%clk 0:03:01.3]} 3... Nf6 {[%clk 0:02:56.5]}
4. e3 {[%clk 0:03:01.2]} 4... g6 {[%clk 0:02:53.8]} 5. Nc3 {[%clk 0:03:00.3]}
5... Nbd7 {[%clk 0:02:45.5]} 6. Bd3 {[%clk 0:02:56.8]} 6... Bg7 {[%clk 0:02:41]}
7. O-O {[%clk 0:02:54.2]} 7... O-O {[%clk 0:02:41.3]} 8. e4 {[%clk 0:02:53.5]}
8... dxe4 {[%clk 0:02:35]} 9. Nxe4 {[%clk 0:02:54.4]} 9... Nxe4 {[%clk
0:02:31.6]} 10. Bxe4 {[%clk 0:02:54.1]} 10... e5 {[%clk 0:02:30]} 11. Bg5 {[%clk
0:02:39.2]} 11... f6 {[%clk 0:02:24.4]} 12. Bh4 {[%clk 0:02:30.2]} 12... exd4
{[%clk 0:02:19.9]} 13. Nxd4 {[%clk 0:02:22.3]} 13... Qb6 {[%clk 0:02:19.6]} 14.
Ne6 {[%clk 0:02:18.3]} 14... Re8 {[%clk 0:02:12.8]} 15. Qd6 {[%clk 0:02:00.6]}
15... f5 {[%clk 0:02:11.5]} 16. Bxf5 {[%clk 0:01:49.4]} 16... Be5 {[%clk
0:02:07.1]} 17. Qd3 {[%clk 0:01:41.6]} 17... Nf8 {[%clk 0:01:59.4]} 18. Bxg6
{[%clk 0:01:33]} 18... Nxg6 {[%clk 0:01:54.8]} 19. Ng5 {[%clk 0:01:27.9]} 19...
Qd4 {[%clk 0:01:49.9]} 20. Qxd4 {[%clk 0:01:11.2]} 20... Bxd4 {[%clk 0:01:49.3]}
21. Rad1 {[%clk 0:01:06.1]} 21... Bxb2 {[%clk 0:01:41.5]} 22. Rd3 {[%clk
0:00:57.5]} 22... Nxh4 {[%clk 0:01:38]} 0-1